{"text_format":"1","workbook":"xlsx","n_sheets":2,"sheets":["Perioderegnskab skema","Ark3"],"not_rendered":{"charts":0,"images":0,"macros":1,"external_links":0,"defined_names":2,"comments":0,"pivot_tables":0},"unopened":[],"bounds":{"document_bytes":16777216,"sheet_cells":100000,"rows_first":2000,"rows_last":500,"rows_between":2000,"halvings":0,"cell_chars":16384,"cell_head_chars":4096},"cells_cut":0,"cells_raw":0,"read":"whole","date_system":"1900"}

{"sheet":"Perioderegnskab skema","index":0,"n_rows":25,"n_cols":11,"rows_kept":25,"cut":false,"hidden":false,"merged":[[22,1,23,5],[22,6,23,10],[24,6,24,10],[24,1,24,5],[2,3,2,5],[2,7,2,10],[3,1,3,3],[3,6,3,10],[3,4,3,5],[18,9,19,9],[16,10,17,10],[4,9,4,10],[4,6,4,7],[4,3,4,4]]}
[]
[]
["Regnskabsskema",null,null,"Horizon2020-NET",null,null,"Sagsnummer: "]
["Projekt titel: ",null,null,null,"Bevillingshaver"]
["Startdato for regnskabsperiode: ",null,"Slutdato for regnskabsperiode: ",null,null,"Startdato for projekt: ",null,null,"Slutdato for projekt:"]
["A. Omkostningsarter","B. Akkumuleret regnskab før periodens start","C. Projekt perioderegnskab","D.  Akkumuleret regnskab + periodens budget (B+C)","E. Oprindeligt projekt budget","F. Rest budget (E-D)","G. Under- eller mer forbrug i procent","H.            Indtast samlet støtteprocent","I. Tidligere faktureret tilskud (B*H/100)","J. Rest til fakturering (C*H/100)","K. Akkumuleret tilskud (D*H)"]
["Løn",null,null,{"$f":"(+B7+C7)","v":0},null,{"$f":"+E7-D7","v":0},{"$f":"+(E7-D7)*100/E7","v":{"$error":"#DIV/0!"}},null,{"$f":"B7*H7/100","v":0},{"$f":"+C7*H7/100","v":0},{"$f":"(D7*H7/100)","v":0}]
["Rejser og møder",null,null,{"$f":"(+B8+C8)","v":0},null,0,{"$error":"#DIV/0!"},null,{"$f":"B8*H8/100","v":0},0,0]
["Ekstern hjælp",null,null,0,null,0,{"$error":"#DIV/0!"},null,0,0,0]
["Arrangementer",null,null,0,null,0,{"$error":"#DIV/0!"},null,0,0,0]
["K. I alt",{"$f":"SUM(B7:B10)","v":0},{"$f":"SUM(C7:C10)","v":0},{"$f":"SUM(D7:D10)","v":0},{"$f":"SUM(E7:E10)","v":0},{"$f":"SUM(F7:F10)","v":0},{"$f":"+(E11-D11)*100/E11","v":{"$error":"#DIV/0!"}},50,0,{"$f":"E11*H11/100-I11","v":0},{"$f":"I11+J11","v":0}]
["L. Max tilskudsbeløb til udbetaling i alt",null,null,null,null,null,null,null,null,null,{"$f":"E11*50/100","v":0}]
["Vejledning til regnskabsskema:"]
["1. Indtast sagsnummer, projekt titel, navn på bevillingshaver, start- og slutdato for regnskabsperioden samt start- og slutdato for projektet",null,null,null,null,null,null,null,true,{"$f":"IFERROR(IF(G7<-20,1,IF(G8<-20,1,IF(G9<-20,1,IF(G10<-20,1,IF(#REF!<-20,1,IF(#REF!<-20,1,0)))))),\"\")","v":""},{"$f":"IFERROR(IF(#REF!<-20,1,IF(#REF!<-20,1,IF(#REF!<-20,1,IF(#REF!<-20,1,IF(#REF!<-20,1,IF(#REF!<-20,1,0)))))),\"\")","v":""}]
["2. Indtast det akkumulerede regnskab fra sidste periode (kolonne B)"]
["3. Indtast periodens regnskab (kolonne C)"]
["4. Indtast godkendt projekt budget (kolonne E)",null,null,null,null,null,null," = Hvide felter til brug for indtastning"]
["5. Indtast det maksimale tilskudsbeløb (linje L, kolonne K)"]
["6. Hvis overskridelsen for den enkelte omkostningsart er større end -20%, skal der samtidig vedlægges forslag til et nyt projektbudget",null,null,null,null,null,null,null,null,{"$f":"IFERROR(IF(J14=1,\"X\",IF(K14=1,\"X\",\" \")),\"\")","v":" "}]
["    og afkrydse feltet til højre InnoFonden vil herefter tage stilling til om budgetændringen kan godkendes. (kolonne G)"]
["7. Indtast CVR nummer og dato, herefter underskriv og indsend i pdf format til bevilling@fi.dk"]
["8. Der udbetales til virksomhedens NemKonto"]
["CVR nr. ","Projektansvarlig: Navn og titel",null,null,null,null,"Økonomiansvarlig: Navn og titel"]
["Dato"]
[null,"Underskrift",null,null,null,null,"Underskrift"]

{"sheet":"Ark3","index":1,"n_rows":0,"n_cols":0,"rows_kept":0,"cut":false,"hidden":false,"merged":[]}